[Event "26th Womens ECCC 2022"]
[Site "Mayrhofen"]
[Date "2022.10.07"]
[Round "5.9"]
[White "Muzychuk, Anna"]
[Black "Sukandar, Irine Kharisma"]
[Result "1-0"]
[ECO "C95"]
[WhiteElo "2534"]
[BlackElo "2401"]
[Annotator "TA"]
[PlyCount "103"]
[EventDate "2022.10.03"]
[EventType "team-tourn"]
[EventCountry "AUT"]
[SourceTitle "playchess.com"]
[Source "ChessBase"]
[SourceQuality "1"]
[TimeControl "40/5400+30:1800+30"]

{[%evp 21,103,29,35,10,42,0,0,7,17,13,28,17,24,30,29,24,14,10,15,15,37,39,31,23,20,21,48,27,21,21,14,17,16,11,19,27,73,59,74,26,33,26,35,13,11,19,101,9,88,67,83,0,77,0,4,5,47,0,26,0,39,18,89,97,152,157,153,173,136,111,674,234,223,223,12834,12835,12835,12835,12833,12831,1924,1914,1298,1163]} 1. e4 {[%emt 0:00:02]} e5 {[%emt 0:00:27]} 2. Nf3 {[%emt 0:00:06]} Nc6 {[%emt 0:00:20]} 3. Bb5 {[%emt 0:00:08]} a6 {[%emt 0:00:13]} 4. Ba4 {[%emt 0:00:06]} Nf6 {[%emt 0:00:19]} 5. O-O {[%emt 0:00:10]} Be7 {[%emt 0:00:18]} 6. Re1 {[%emt 0:00:08]} b5 {[%emt 0:00:16]} 7. Bb3 {[%emt 0:00:01]} d6 {[%emt 0:00:17]} 8. c3 {[%emt 0:00:12]} O-O {[%emt 0:00:17]} 9. h3 {[%emt 0:00:18]} Nb8 {[%emt 0:00:21]} 10. d4 {[%emt 0:00:15]} Nbd7 {[%emt 0:00:23]} 11. c4 {[%emt 0:00:32]} c6 {[%emt 0:00:33]} 12. Qc2 {[%emt 0:00:23] C95: Closed Ruy Lopez: Breyer Variation with 10 d4.} Bb7 {[%emt 0:06:33]} (12... a5 $5 {[%cal Ra5a4]} 13. cxb5 cxb5 $11) 13. a3 {[%emt 0:00:26]} bxc4 {[%emt 0:13:50]} 14. Bxc4 {[%emt 0:00:19] The position is equal.} d5 {[%emt 0:12:25]} 15. dxe5 {[%emt 0:00:37]} Nxe4 {[%emt 0:01:05]} 16. Ba2 {[%emt 0:00:35]} Ndc5 {[%emt 0:07:17]} 17. Nc3 {[%emt 0:22:46] [#]} a5 $146 {[%emt 0:04:21]} ({Predecessor:} 17... Nxc3 18. bxc3 Ne6 19. Rb1 Qc7 20. Nd4 Rfd8 21. Qf5 Bc8 22. Qf3 g6 23. Be3 c5 {½-½ (42) Bacrot,E (2678)-Amin,B (2703) Krasnaya Polyana 2021}) 18. Be3 {[%emt 0:03:07]} Nxc3 {[%emt 0:05:51]} 19. bxc3 {[%emt 0:00:24]} Ne6 {[%emt 0:00:22]} 20. Nd4 {[%emt 0:03:14]} c5 {[%emt 0:05:18]} 21. Nf5 {[%emt 0:01:31]} g6 {[%emt 0:02:01]} 22. Nh6+ {[%emt 0:07:28]} Kh8 {[%emt 0:01:16]} 23. Rad1 {[%emt 0:04:43][%cal Oa2d5]} Bg5 {[%emt 0:05:45]} 24. Ng4 {[%emt 0:09:55][%cal Oa2d5]} h5 $1 {[%emt 0:04:37]} 25. Nf6 {[%emt 0:02:03]} Bxf6 {[%emt 0:03:41]} 26. exf6 {[%emt 0:00:05]} Qxf6 {[%emt 0:05:22]} 27. Bxd5 {[%emt 0:01:28]} Bxd5 {[%emt 0:00:22]} 28. Rxd5 {[%emt 0:00:01]} Rfd8 {[%emt 0:01:14]} (28... Kg8 $11 {was preferrable.}) 29. c4 $16 {[%emt 0:13:28]} Rab8 {[%emt 0:02:33]} 30. Qd2 {[%emt 0:08:10]} ({Not} 30. Bxc5 $2 Nxc5 31. Qe2 (31. Rxc5 $2 Rb2 $19) 31... Rxd5 32. cxd5 Kg7 $19) (30. Bd2 $16) 30... a4 {[%emt 0:02:14]} 31. Rd1 {[%emt 0:02:01]} Rdc8 {[%emt 0:05:06]} 32. Qa5 {[%emt 0:03:12][%csl LRa4,LRc5]} Ra8 {[%emt 0:00:28]} 33. Qb6 {[%emt 0:00:47][%cal Rd5c5]} Rab8 {[%emt 0:00:34]} (33... Rcb8 $11 34. Qc6 Rc8) 34. Qd6 {[%emt 0:02:03] White has more active pieces.} ({Better is} 34. Rxc5 $16 Rxb6 35. Rxc8+ Kg7 36. Bxb6) 34... Rd8 {[%emt 0:03:02]} (34... Kg7 $11) 35. Qc6 {[%emt 0:01:49]} Rdc8 {[%emt 0:03:41]} 36. Qd6 {[%emt 0:04:34]} Rd8 {[%emt 0:03:55]} 37. Qg3 {[%emt 0:08:37]} ({White should play} 37. Qa6 $16) 37... Kh7 {[%emt 0:00:37]} 38. Kh2 {[%emt 0:01:05]} Rbc8 {[%emt 0:01:05]} 39. Rd7 {[%emt 0:02:25]} (39. Bd2 $14 {is superior.}) 39... Kg8 {[%emt 0:00:42]} 40. R7d5 {[%emt 0:00:37]} (40. Qd6 $5) 40... Kh7 {[%emt 0:00:40]} 41. h4 {[%emt 0:04:18]} Rxd5 {[%emt 0:06:44]} (41... Rb8 $11 {keeps the balance.}) 42. cxd5 {[%emt 0:04:03][%cal Bc4d5,Bd5d6,Bd6d7][%mdl 32]} ({Reject} 42. Rxd5 $6 Rc6 $11) 42... Nd4 {[%emt 0:00:53]} (42... Nf8 $142) 43. d6 $1 {[%emt 0:07:49] Black must now prevent d7.} Rc6 {[%emt 0:04:36] [#]} 44. Bf4 {[%emt 0:01:30]} Qe6 {[%emt 0:04:12]} 45. Qg5 {[%emt 0:03:16] Strongly threatening Rd3.} Rc8 $2 {[%emt 0:02:01][%mdl 8192] Loses the game.} (45... Rxd6 $16 46. Bxd6 Qxd6+ 47. Kh1 Kg8) 46. Be5 $2 {[%emt 0:05:43]} (46. Rd3 {aiming for Re3.} Qf5 47. d7) 46... Re8 {[%emt 0:05:32] [#]} 47. f4 {[%emt 0:00:40] Threatens to win with Qf6.} Nc6 $2 {[%emt 0:03:31]} (47... Qd7 48. Bxd4 cxd4) 48. d7 $18 {[%emt 0:01:52] White is clearly winning.} Rd8 {[%emt 0:02:02]} 49. Rd6 {[%emt 0:00:22][%cal Bd1d6,Bd6e6,Be6e1][%mdl 32] White wants to mate with Rxc6.} Nxe5 {[%emt 0:01:37]} 50. Rxe6 {[%emt 0:01:45]} Ng4+ {[%emt 0:00:07]} 51. Kg1 {[%emt 0:00:12]} Rxd7 {[%emt 0:00:11]} 52. Re1 {[%emt 0:00:17] Weighted Error Value: White=0.39/Black=0.28 (precise)} 1-0

[Event "26th Womens ECCC 2022"]
[Site "Mayrhofen"]
[Date "2022.10.07"]
[Round "5.10"]
[White "Houska, Jovanka"]
[Black "Stefanova, Antoaneta"]
[Result "0-1"]
[ECO "D30"]
[WhiteElo "2354"]
[BlackElo "2440"]
[Annotator "TA"]
[PlyCount "98"]
[EventDate "2022.10.03"]
[EventType "team-tourn"]
[EventCountry "AUT"]
[SourceTitle "playchess.com"]
[Source "ChessBase"]
[SourceQuality "1"]
[TimeControl "40/5400+30:1800+30"]

{[%evp 10,98,28,35,40,31,39,13,26,-9,38,53,44,36,54,52,50,50,61,57,59,64,62,71,61,77,56,47,34,-15,-13,-69,0,0,25,58,55,64,57,47,83,57,89,0,117,106,117,120,118,111,113,108,121,114,110,22,29,-506,-518,-516,-504,-565,-531,-573,-567,-548,-518,-510,-521,-510,-502,-644,-623,-645,-635,-741,-725,-690,-679,-712,-707,-5035,-5035,-5172,-5093,-29987,-29979,-29984,-29985,-29994,-29995]} 1. d4 {[%emt 0:00:03]} d5 {[%emt 0:00:09]} 2. c4 {[%emt 0:00:04]} e6 {[%emt 0:03:03]} 3. Nf3 {[%emt 0:00:32]} c6 {[%emt 0:01:15]} 4. e3 {[%emt 0:00:31]} Bd6 {[%emt 0:01:22]} 5. Nc3 {[%emt 0:00:20]} f5 {[%emt 0:00:35]} 6. Bd3 {[%emt 0:00:23]} Nh6 {[%emt 0:01:21] A84: Dutch Defence: 2 c4 Miscellaneous.} 7. Qc2 {[%emt 0:03:38]} O-O {[%emt 0:02:46]} 8. Bd2 {[%emt 0:01:50]} Nd7 {[%emt 0:06:08] The position is equal.} 9. O-O-O {[%emt 0:02:38] is the legacy move (9.Ne2).} a6 {[%emt 0:06:03]} (9... b5 $11) 10. h3 $14 {[%emt 0:08:30][%cal Og2g4] [#]} Kh8 $146 {[%emt 0:04:12]} ({Predecessor:} 10... Qe7 11. Kb1 b6 12. Ne2 Bb7 13. Nf4 Rac8 14. Qb3 Nf7 15. c5 Bc7 16. g4 bxc5 17. Qxb7 {0-1 (30) Popov,S (2447)-Sethuraman,S (2640) Kragujevac 2016}) 11. Ne2 {[%emt 0:03:05]} b5 {[%emt 0:09:34]} 12. c5 {[%emt 0:05:26]} Bc7 {[%emt 0:00:17]} 13. Nf4 {[%emt 0:01:12]} Qe7 {[%emt 0:04:04]} 14. g4 {[%emt 0:02:00]} e5 {[%emt 0:00:54]} 15. dxe5 {[%emt 0:06:33]} Nxe5 {[%emt 0:05:00]} 16. Nxe5 {[%emt 0:04:47]} Bxe5 {[%emt 0:00:09]} 17. Rdg1 {[%emt 0:00:46]} a5 {[%emt 0:10:40]} 18. g5 {[%emt 0:03:13]} Nf7 {[%emt 0:03:27][%cal Bh6f7,Bf7g5,Bg5f3][%mdl 32]} 19. g6 {[%emt 0:01:44]} (19. h4 $1 $14) 19... Ng5 {[%emt 0:03:09] next ...Ne4 is good for Black.} 20. Bc3 {[%emt 0:25:30]} (20. gxh7 $1 $11 Bxf4 21. exf4) 20... Bxf4 {[%emt 0:25:25]} (20... d4 $1 $15 21. Bxd4 Bxf4 22. exf4 Nf3) 21. exf4 $11 {[%emt 0:01:48]} Nf3 {[%emt 0:00:38]} 22. Rg3 $36 {[%emt 0:04:37][%mdl 2048] White is pushing.} d4 $1 {[%emt 0:00:10]} 23. Rxf3 {[%emt 0:00:35]} dxc3 {[%emt 0:00:08]} 24. Qxc3 {[%emt 0:00:08]} hxg6 {[%emt 0:05:06]} 25. h4 {[%emt 0:04:40][%cal Bh3h4,Bh4h5,Bh5h6][%mdl 32] Hoping for h5.} b4 {[%emt 0:01:44] [#]} 26. Qc2 {[%emt 0:01:25]} ({Better is} 26. h5 $1 $16 g5 27. Re1) 26... a4 {[%emt 0:02:57]} (26... Be6 $11 {remains equal.}) 27. h5 {[%emt 0:00:04]} g5 {[%emt 0:00:09][%cal Ob4b3]} 28. h6 {[%emt 0:00:58] And now hxg7+ would win.} g6 {[%emt 0:00:26]} 29. Re3 {[%emt 0:07:36]} Qf6 {[%emt 0:00:01]} 30. fxg5 {[%emt 0:00:13]} Qxg5 {[%emt 0:00:02]} 31. Qc4 {[%emt 0:01:23] aiming for Qd4+.} Qf6 {[%emt 0:01:12] [#] Inhibits Qd4.} 32. Qxb4 {[%emt 0:00:24]} (32. Rhe1 $1 $16) 32... Be6 {[%emt 0:01:50]} 33. Bc4 $2 {[%emt 0:02:24][%mdl 8192] White does not recover from this.} (33. a3 $11) 33... Rab8 $19 {[%emt 0:00:43]} 34. Qc3 {[%emt 0:07:43]} Bxc4 {[%emt 0:00:06]} 35. Qxf6+ {[%emt 0:00:18]} Rxf6 {[%emt 0:00:07]} 36. Rh4 {[%emt 0:00:03]} Bxa2 {[%emt 0:01:41]} 37. Rxa4 {[%emt 0:00:05]} Bf7 {[%emt 0:00:18]} 38. Ra7 {[%emt 0:00:52]} Kh7 {[%emt 0:00:26]} 39. Ree7 {[%emt 0:01:10]} Rf8 {[%emt 0:00:06]} 40. f4 {[%emt 0:00:43]} Kxh6 {[%emt 0:00:15]} 41. Re2 {[%emt 0:06:20]} g5 {[%emt 0:11:08]} 42. fxg5+ {[%emt 0:00:35]} Kxg5 {[%emt 0:00:03] Strongly threatening ...f4.} 43. Rg2+ {[%emt 0:00:38]} Kh6 {[%emt 0:02:00] Threatens to win with ...f4.} 44. Kd2 {[%emt 0:04:53]} f4 {[%emt 0:00:36][%cal Bf5f4,Bf4f3,Bf3f2][%mdl 32]} 45. Ke1 {[%emt 0:00:58]} f3 {[%emt 0:01:03]} 46. Rh2+ {[%emt 0:00:05]} Kg5 {[%emt 0:02:17] ( -> ...Re8+)} 47. Kf2 {[%emt 0:02:13]} Rd8 {[%emt 0:01:42] Black mates.} 48. Kg3 {[%emt 0:02:54]} Rd4 {[%emt 0:00:39]} 49. b3 {[%emt 0:01:52]} f2 {[%emt 0:00:48] Weighted Error Value: White=0.38/Black=0.14 (very precise)} 0-1

[Event "26th Womens ECCC 2022"]
[Site "Mayrhofen"]
[Date "2022.10.07"]
[Round "5.11"]
[White "Cramling, Pia"]
[Black "Hunt, Harriet V"]
[Result "1/2-1/2"]
[ECO "E15"]
[WhiteElo "2459"]
[BlackElo "2359"]
[Annotator "TA"]
[PlyCount "45"]
[EventDate "2022.10.03"]
[EventType "team-tourn"]
[EventCountry "AUT"]
[SourceTitle "playchess.com"]
[Source "ChessBase"]
[SourceQuality "1"]
[TimeControl "40/5400+30:1800+30"]

{[%evp 19,45,12,12,4,6,8,0,0,0,0,0,0,-6,-11,-18,-45,-35,-39,-50,-42,-9,-33,0,-46,0,-41,0,-37]} 1. d4 {[%emt 0:00:15]} Nf6 {[%emt 0:00:15]} 2. Nf3 {[%emt 0:00:16]} e6 {[%emt 0:00:13]} 3. c4 {[%emt 0:00:19]} b6 {[%emt 0:00:25]} 4. g3 {[%emt 0:00:24]} Ba6 {[%emt 0:00:22]} 5. b3 {[%emt 0:00:31]} Bb4+ {[%emt 0:04:51]} 6. Bd2 {[%emt 0:00:13]} Be7 {[%emt 0:00:32]} 7. Bg2 {[%emt 0:05:13]} d5 {[%emt 0:01:18]} 8. cxd5 {[%emt 0:00:51]} exd5 {[%emt 0:00:13]} 9. Nc3 {[%emt 0:00:37]} O-O {[%emt 0:03:42]} 10. O-O {[%emt 0:00:07]} Re8 {[%emt 0:05:35]} 11. Re1 {[%emt 0:11:11] E15: Queen's Indian: 4 g3 sidelines, 4 g3 Ba6 and 4 g3 Bb7 early deviations.} Bb7 {[%emt 0:09:20] 11...Nbd7 gains popularity.} 12. Rc1 {[%emt 0:08:21]} Ne4 {[%emt 0:13:33]} 13. Ne5 {[%emt 0:04:15] [#]} Ba3 $146 {[%emt 0:11:10]} ({Predecessor:} 13... Na6 14. e3 Bd6 15. Nxe4 dxe4 16. Nc4 Bf8 17. Ne5 c5 18. Bc3 cxd4 19. Bxd4 f6 {½-½ (31) Flumbort,A (2457)-Nayhebaver,M (2471) Hungary 2020}) 14. Rc2 {[%emt 0:08:59]} Na6 {[%emt 0:02:53]} 15. Nxe4 {[%emt 0:13:47]} dxe4 {[%emt 0:00:16]} 16. Nc4 {[%emt 0:00:38]} Bf8 {[%emt 0:01:28]} 17. Bc3 {[%emt 0:01:37]} Nb4 {[%emt 0:01:54]} 18. Bxb4 {[%emt 0:00:10]} Bxb4 {[%emt 0:00:03]} 19. Rf1 {[%emt 0:00:09]} Bf8 {[%emt 0:06:42]} (19... b5 $5 {[%cal Rb5c4]} 20. Ne3 c6 $15) 20. Rd2 {[%emt 0:02:59]} Bb4 {[%emt 0:00:41]} 21. Rc2 {[%emt 0:00:09]} Bf8 {[%emt 0:00:26]} (21... b5 $5 {[%cal Rb5c4]} 22. Ne3 c6 $15) 22. Rd2 {[%emt 0:01:40]} Bb4 {[%emt 0:00:31]} 23. Rc2 {[%emt 0:00:08] Weighted Error Value: White=0.04 (flawless) /Black=0.13 (very precise)} 1/2-1/2

[Event "26th Womens ECCC 2022"]
[Site "Mayrhofen"]
[Date "2022.10.07"]
[Round "5.12"]
[White "Toma, Katarzyna"]
[Black "Paehtz, Elisabeth"]
[Result "1/2-1/2"]
[ECO "B50"]
[WhiteElo "2249"]
[BlackElo "2469"]
[Annotator "TA"]
[PlyCount "132"]
[EventDate "2022.10.03"]
[EventType "team-tourn"]
[EventCountry "AUT"]
[SourceTitle "playchess.com"]
[Source "ChessBase"]
[SourceQuality "1"]
[TimeControl "40/5400+30:1800+30"]

{[%evp 17,132,0,0,-18,-4,-4,40,0,15,6,21,12,20,5,20,17,66,0,0,-17,-10,-40,0,0,0,-152,-185,-182,-46,-43,-43,-42,-40,-45,-45,-38,-46,-43,-37,-39,-46,-73,-72,-72,-72,-64,-23,-19,-25,-25,-25,-25,0,0,0,-75,227,212,179,10,9,0,25,0,0,0,0,0,0,0,0,0,0,0,0,0,0,0,0,0,0,0,22,22,22,22,22,22,22,22,22,22,22,22,22,22,22,22,22,22,22,22,22,22,22,22,22,22,22,22,22,22,22,22,22,0,22]} 1. e4 {[%emt 0:00:03]} c5 {[%emt 0:00:03]} 2. Nf3 {[%emt 0:00:05]} d6 {[%emt 0:00:03]} 3. d3 {[%emt 0:00:32]} g6 {[%emt 0:00:17]} 4. g3 {[%emt 0:00:08]} Bg7 {[%emt 0:00:04]} 5. Bg2 {[%emt 0:00:05]} Nc6 {[%emt 0:00:07]} 6. O-O {[%emt 0:00:11]} e5 {[%emt 0:00:10]} 7. c3 {[%emt 0:00:30]} Nge7 {[%emt 0:00:04]} 8. a3 {[%emt 0:00:13]} O-O {[%emt 0:00:46]} 9. b4 {[%emt 0:00:22]} h6 {[%emt 0:01:21]} 10. Bb2 {[%emt 0:03:46] A04: Unusual lines after 1 Nf3 and King's Indian Attack.} Be6 {[%emt 0:03:39]} 11. b5 {[%emt 0:08:03]} Nb8 {[%emt 0:03:47]} 12. Nbd2 {[%emt 0:02:52] White is slightly better.} Nd7 {[%emt 0:23:43] [#]} 13. d4 $146 {[%emt 0:09:16]} ({Predecessor:} 13. a4 Qc7 14. d4 f5 15. Re1 Rae8 16. d5 Bf7 17. c4 Nf6 18. Nh4 fxe4 19. Nxe4 {0-1 (39) Akhmedov,D (2041)-Dudin,G (2428) Moscow 2021}) 13... exd4 {[%emt 0:01:44]} 14. cxd4 {[%emt 0:00:10]} d5 {[%emt 0:06:35]} 15. Re1 {[%emt 0:08:25]} Rc8 {[%emt 0:02:53]} 16. Rc1 {[%emt 0:01:55]} c4 {[%emt 0:12:55]} (16... Re8 $11) 17. Qe2 {[%emt 0:10:59]} (17. a4 $14) 17... Nb6 $11 {[%emt 0:02:18]} 18. exd5 {[%emt 0:05:09]} Nexd5 {[%emt 0:00:09]} 19. Ne4 {[%emt 0:00:26] Inhibits c3.} (19. Nxc4 $2 Nxc4 20. Rxc4 Nf4 $1 {[%mdl 512]} 21. gxf4 Bxc4 $19) 19... Re8 {[%emt 0:07:22]} (19... Na4 $5 {[%cal Rc4c3]}) 20. Ne5 {[%emt 0:13:58]} Bf5 {[%emt 0:06:36]} 21. Nxc4 $2 {[%emt 0:13:07]} (21. Ba1 $11) 21... Bxe4 $17 {[%emt 0:07:19]} 22. Bxe4 {[%emt 0:01:19] [#]} (22. Nxb6 $2 Rxc1 23. Bxc1 Nf6 $19) 22... Rxc4 {[%emt 0:04:20]} ({Black should try} 22... Rxe4 $1 $19 {[%mdl 512]} 23. Qxe4 Nxc4) 23. Rxc4 $15 {[%emt 0:01:09] Hoping for Rcc1.} Rxe4 $1 {[%emt 0:03:38]} 24. Qxe4 {[%emt 0:00:05]} Nxc4 {[%emt 0:00:02] Pair of Knights!} 25. Qe8+ {[%emt 0:02:50]} Qxe8 {[%emt 0:00:04]} 26. Rxe8+ {[%emt 0:00:04]} Kh7 {[%emt 0:00:06]} 27. Rd8 {[%emt 0:08:41]} Ndb6 {[%emt 0:00:37]} (27... Nxb2 28. Rxd5 Nc4 29. Rd7 $11) 28. Bc1 {[%emt 0:00:25]} g5 {[%emt 0:03:41]} 29. Rb8 {[%emt 0:01:26]} Nd6 {[%emt 0:00:09]} (29... Bxd4 30. Rxb7 Nd5 31. Kg2 $14 (31. Rd7 Nc3 $14)) 30. Be3 {[%emt 0:01:14][%cal Od4d5]} Kg6 {[%emt 0:01:52]} ({Of course not} 30... Nxb5 31. Rxb7 Nxa3 32. Rxf7 $14 (32. Rxa7 Nc2 $11)) 31. d5 {[%emt 0:03:26]} Be5 {[%emt 0:02:39]} (31... Nxd5 $2 32. Rd8 Be5 33. Bc5 $18) ({Don't take} 31... Nxb5 32. Rxb7 Bd4 33. Bxd4 Nxd4 34. d6 $16) 32. f4 {[%emt 0:03:22]} gxf4 {[%emt 0:00:04]} 33. gxf4 {[%emt 0:00:03]} Bb2 {[%emt 0:00:13]} 34. Bc5 {[%emt 0:00:45]} Ne4 {[%emt 0:02:39]} 35. Bxb6 {[%emt 0:01:09]} axb6 {[%emt 0:00:02]} 36. Rxb7 {[%emt 0:00:08] [#]} (36. a4 $1 $11 {remains equal.}) 36... Bxa3 $2 {[%emt 0:00:06][%mdl 8192]} (36... Nd6 $1 $17 {[%cal Rd6b7] keeps the pressure on.} 37. Ra7 Kf5) 37. Rxb6+ $18 {[%emt 0:00:08]} Kf5 {[%emt 0:01:37] [#] ...Bc5+ is the strong threat.} 38. Rxh6 $2 {[%emt 0:00:18]} (38. Rc6 $1 $18) 38... Nd6 $11 {[%emt 0:01:20]} 39. b6 {[%emt 0:01:00]} Ke4 {[%emt 0:04:12]} 40. Rf6 {[%emt 0:01:29]} Kxd5 {[%emt 0:00:35] The position is equal.} 41. b7 {[%emt 0:30:05]} Nxb7 {[%emt 0:30:02]} 42. Rxf7 {[%emt 0:00:05]} Nd6 {[%emt 0:00:04]} 43. Rf6 {[%emt 0:00:00]} Ke4 {[%emt 0:00:00]} 44. Kg2 {[%emt 0:00:00]} Nf5 {[%emt 0:00:00]} 45. Ra6 {[%emt 0:00:00]} Bc5 {[%emt 0:00:00]} 46. Ra4+ {[%emt 0:00:00]} Bd4 {[%emt 0:00:00]} 47. h4 {[%emt 0:00:00]} Nxh4+ {[%emt 0:00:00]} 48. Kh3 {[%emt 0:00:00]} Ng6 {[%emt 0:00:00]} 49. f5 {[%emt 0:00:00]} Kxf5 {[%emt 0:00:00]} 50. Rxd4 {[%emt 0:00:00][%mdl 4096] Endgame KR-KN} Nf4+ {[%emt 0:00:00]} 51. Kh4 {[%emt 0:00:00]} Ke5 {[%emt 0:00:00]} 52. Ra4 {[%emt 0:00:00]} Nd5 {[%emt 0:00:00]} 53. Kg5 {[%emt 0:00:00]} Ne3 {[%emt 0:00:00]} 54. Ra8 {[%emt 0:00:00]} Nd5 {[%emt 0:00:00]} 55. Re8+ {[%emt 0:00:00]} Kd4 {[%emt 0:00:00]} 56. Kf5 {[%emt 0:00:00]} Ne3+ {[%emt 0:00:00]} 57. Kf4 {[%emt 0:00:00]} Nd5+ {[%emt 0:00:00]} 58. Kf3 {[%emt 0:00:00]} Kc5 {[%emt 0:00:00]} 59. Re5 {[%emt 0:00:00] White threatens Ke4 and mate.} Kd4 {[%emt 0:00:00]} 60. Rg5 {[%emt 0:00:00]} Nf6 {[%emt 0:00:00]} 61. Rg1 {[%emt 0:00:00]} Nd5 {[%emt 0:00:00]} 62. Re1 {[%emt 0:00:00]} Nc3 {[%emt 0:00:00]} 63. Ra1 {[%emt 0:00:00]} Nd5 {[%emt 0:00:00]} 64. Ra4+ {[%emt 0:00:00]} Ke5 {[%emt 0:00:00]} 65. Kg3 {[%emt 0:00:00]} Kf5 {[%emt 0:00:00]} 66. Kf3 {[%emt 0:00:00]} Ke5 {White used his chance.  Weighted Error Value: White=0.18 (very precise) /Black=0.16 (very precise)} 1/2-1/2